[Event "Late-Titled-Tuesday-Blitz-June-25-2024"]
[Site "Chess.com"]
[Date "2024.06.25"]
[Round "8"]
[White "tgpgoat"]
[Black "Chempiblinka"]
[Result "0-1"]
[WhiteElo "2498"]
[BlackElo "2410"]
[TimeControl "180+1"]
[EndTime "15:27:39 PDT"]
[Termination "Chempiblinka won by resignation"]

1. Nf3 {[%clk 0:02:39.7]} 1... Nf6 {[%clk 0:02:59.5]} 2. d4 {[%clk 0:02:39.4]}
2... g6 {[%clk 0:02:59.8]} 3. Bg5 {[%clk 0:02:39.4]} 3... Bg7 {[%clk 0:02:59.1]}
4. Nbd2 {[%clk 0:02:40.1]} 4... c5 {[%clk 0:02:58.1]} 5. Bxf6 {[%clk 0:02:39.6]}
5... Bxf6 {[%clk 0:02:57.4]} 6. Ne4 {[%clk 0:02:40.2]} 6... Bxd4 {[%clk
0:02:52]} 7. Nxd4 {[%clk 0:02:39.3]} 7... cxd4 {[%clk 0:02:52.9]} 8. Qxd4 {[%clk
0:02:39.2]} 8... O-O {[%clk 0:02:53.1]} 9. O-O-O {[%clk 0:02:38.1]} 9... Qa5
{[%clk 0:02:48.7]} 10. h4 {[%clk 0:02:35.5]} 10... Qxa2 {[%clk 0:02:44.9]} 11.
h5 {[%clk 0:02:35.5]} 11... Nc6 {[%clk 0:02:36.8]} 12. Qc3 {[%clk 0:02:35.4]}
12... d5 {[%clk 0:01:56.6]} 13. hxg6 {[%clk 0:02:32]} 13... fxg6 {[%clk
0:01:56]} 14. e3 {[%clk 0:01:55.9]} 14... Bf5 {[%clk 0:01:18.1]} 15. Ng5 {[%clk
0:01:50.6]} 15... Rac8 {[%clk 0:00:59.9]} 16. Rxh7 {[%clk 0:01:44.9]} 16... Nd4
{[%clk 0:01:00.1]} 17. Rg7+ {[%clk 0:01:27.2]} 17... Kxg7 {[%clk 0:00:56]} 18.
Qxd4+ {[%clk 0:01:26.7]} 18... Rf6 {[%clk 0:00:53]} 19. Bd3 {[%clk 0:01:21.5]}
19... Qa1+ {[%clk 0:00:42.8]} 20. Kd2 {[%clk 0:01:19.2]} 20... Qa5+ {[%clk
0:00:43.1]} 21. Kc1 {[%clk 0:00:58.6]} 21... Bxd3 {[%clk 0:00:38.2]} 22. Qxd3
{[%clk 0:00:53.8]} 22... Qa1+ {[%clk 0:00:33.5]} 23. Kd2 {[%clk 0:00:52.4]}
23... Qa5+ {[%clk 0:00:31.2]} 24. Kc1 {[%clk 0:00:48.6]} 24... Rxf2 {[%clk
0:00:27.9]} 25. Qd4+ {[%clk 0:00:36.7]} 25... Kg8 {[%clk 0:00:19.2]} 26. Kb1
{[%clk 0:00:36.5]} 26... Qc5 {[%clk 0:00:17.3]} 27. Qxc5 {[%clk 0:00:32.2]}
27... Rxc5 {[%clk 0:00:18.2]} 28. c3 {[%clk 0:00:32.2]} 28... b6 {[%clk
0:00:14.9]} 29. Ne6 {[%clk 0:00:32]} 29... Rc6 {[%clk 0:00:14.5]} 30. Nf4 {[%clk
0:00:32.1]} 30... Rf6 {[%clk 0:00:14.2]} 31. Nxd5 {[%clk 0:00:27.2]} 31... Re6
{[%clk 0:00:10.3]} 32. g4 {[%clk 0:00:22.2]} 32... Kf7 {[%clk 0:00:10.6]} 33.
Rd3 {[%clk 0:00:21.1]} 33... Rd6 {[%clk 0:00:10.8]} 34. e4 {[%clk 0:00:04.3]}
34... e6 {[%clk 0:00:11.2]} 35. Nb4 {[%clk 0:00:04.5]} 35... Rxd3 {[%clk
0:00:11.5]} 36. Nxd3 {[%clk 0:00:05.4]} 36... Rf1+ {[%clk 0:00:12]} 37. Kc2
{[%clk 0:00:05.6]} 37... Rg1 {[%clk 0:00:12.5]} 38. Kb3 {[%clk 0:00:05.1]} 38...
Ke7 {[%clk 0:00:11.7]} 39. Ne5 {[%clk 0:00:03.1]} 39... Kd6 {[%clk 0:00:11.3]}
40. Nxg6 {[%clk 0:00:03]} 40... Rxg4 {[%clk 0:00:11.6]} 41. e5+ {[%clk 0:00:03]}
41... Kd5 {[%clk 0:00:11]} 42. Nf8 {[%clk 0:00:02.5]} 42... Kxe5 {[%clk
0:00:10.3]} 43. Nd7+ {[%clk 0:00:03.4]} 43... Kd6 {[%clk 0:00:10.7]} 44. Nf6
{[%clk 0:00:03.7]} 44... Rg1 {[%clk 0:00:10.3]} 45. Ne8+ {[%clk 0:00:04.3]}
45... Kd7 {[%clk 0:00:10.5]} 46. Nf6+ {[%clk 0:00:03.8]} 46... Kc6 {[%clk
0:00:11.4]} 47. Kc4 {[%clk 0:00:03.6]} 47... e5 {[%clk 0:00:12.2]} 48. Kd3
{[%clk 0:00:03.5]} 48... Rb1 {[%clk 0:00:12.7]} 49. b4 {[%clk 0:00:03.4]} 49...
Rh1 {[%clk 0:00:13.5]} 50. Ke4 {[%clk 0:00:03.6]} 50... Kb5 {[%clk 0:00:13.8]}
51. Nd5 {[%clk 0:00:02.7]} 51... Kc4 {[%clk 0:00:14.2]} 52. Ne3+ {[%clk
0:00:02.8]} 52... Kxc3 {[%clk 0:00:13.7]} 53. b5 {[%clk 0:00:03.7]} 53... Kb4
{[%clk 0:00:13.2]} 54. Kxe5 {[%clk 0:00:04]} 54... Kxb5 {[%clk 0:00:13.3]} 55.
Nd5 {[%clk 0:00:04.7]} 55... Rh5+ {[%clk 0:00:12.8]} 56. Kd4 {[%clk 0:00:04.7]}
56... Rxd5+ {[%clk 0:00:13.7]} 57. Kxd5 {[%clk 0:00:05.6]} 57... Kb4 {[%clk
0:00:14.1]} 0-1

[Event "Late-Titled-Tuesday-Blitz-June-25-2024"]
[Site "Chess.com"]
[Date "2024.06.25"]
[Round "8"]
[White "MaestroCheck"]
[Black "Rodalquilar"]
[Result "0-1"]
[WhiteElo "2648"]
[BlackElo "2836"]
[TimeControl "180+1"]
[EndTime "15:27:41 PDT"]
[Termination "Rodalquilar won by resignation"]

1. Nf3 {[%clk 0:03:00.9]} 1... d5 {[%clk 0:03:00.3]} 2. b3 {[%clk 0:02:59.5]}
2... Bf5 {[%clk 0:02:59.8]} 3. Bb2 {[%clk 0:02:59.8]} 3... e6 {[%clk 0:03:00.3]}
4. e3 {[%clk 0:02:59.4]} 4... Nf6 {[%clk 0:03:00.7]} 5. g3 {[%clk 0:02:54.4]}
5... h6 {[%clk 0:03:00]} 6. Bg2 {[%clk 0:02:54.6]} 6... Be7 {[%clk 0:03:00.2]}
7. O-O {[%clk 0:02:55.1]} 7... O-O {[%clk 0:03:00.4]} 8. d3 {[%clk 0:02:55.7]}
8... Bh7 {[%clk 0:03:00.8]} 9. Nbd2 {[%clk 0:02:56.1]} 9... Nbd7 {[%clk
0:03:00.7]} 10. Qe2 {[%clk 0:02:56.7]} 10... a5 {[%clk 0:03:01.1]} 11. a3 {[%clk
0:02:56.5]} 11... a4 {[%clk 0:02:58.8]} 12. b4 {[%clk 0:02:56.4]} 12... c5
{[%clk 0:02:59.4]} 13. bxc5 {[%clk 0:02:48.6]} 13... Nxc5 {[%clk 0:02:49.8]} 14.
Rfd1 {[%clk 0:02:43.3]} 14... b5 {[%clk 0:02:48.5]} 15. Ne5 {[%clk 0:02:42.2]}
15... Qb6 {[%clk 0:02:32.3]} 16. Bd4 {[%clk 0:02:31.8]} 16... Rfc8 {[%clk
0:02:31.7]} 17. c4 {[%clk 0:02:30.1]} 17... bxc4 {[%clk 0:02:16.2]} 18. dxc4
{[%clk 0:02:28.2]} 18... Qa6 {[%clk 0:02:16.6]} 19. Bf1 {[%clk 0:02:19.4]} 19...
Nb3 {[%clk 0:02:10.6]} 20. Nxb3 {[%clk 0:02:18.5]} 20... axb3 {[%clk 0:02:11.5]}
21. cxd5 {[%clk 0:02:11.6]} 21... Qxe2 {[%clk 0:02:11]} 22. Bxe2 {[%clk
0:02:12.5]} 22... Nxd5 {[%clk 0:02:11.5]} 23. Bc4 {[%clk 0:02:07.3]} 23... Bc2
{[%clk 0:02:04.8]} 24. Rd2 {[%clk 0:01:46]} 24... Bb4 {[%clk 0:01:49.8]} 25.
axb4 {[%clk 0:01:37.2]} 25... Rxa1+ {[%clk 0:01:40.3]} 26. Bxa1 {[%clk
0:01:37.5]} 26... Nxb4 {[%clk 0:01:41.2]} 27. Bb2 {[%clk 0:01:22.5]} 27... Ra8
{[%clk 0:01:11.6]} 28. Nd3 {[%clk 0:01:12.2]} 28... Rd8 {[%clk 0:00:29.3]} 29.
Bd4 {[%clk 0:00:52.5]} 29... Bxd3 {[%clk 0:00:14.4]} 30. Bxd3 {[%clk 0:00:52.2]}
30... e5 {[%clk 0:00:15]} 31. Bc4 {[%clk 0:00:44.9]} 31... exd4 {[%clk
0:00:12.1]} 32. exd4 {[%clk 0:00:45.1]} 32... Nc6 {[%clk 0:00:04.1]} 33. d5
{[%clk 0:00:39.2]} 33... Ne5 {[%clk 0:00:03.3]} 34. Be2 {[%clk 0:00:38.1]} 34...
Rc8 {[%clk 0:00:03.9]} 35. Bd1 {[%clk 0:00:16.1]} 35... b2 {[%clk 0:00:03.7]}
36. Rxb2 {[%clk 0:00:15.7]} 36... Rc1 {[%clk 0:00:04.4]} 37. f4 {[%clk 0:00:12]}
37... Rxd1+ {[%clk 0:00:04.5]} 38. Kg2 {[%clk 0:00:12.6]} 38... Ng4 {[%clk
0:00:04.7]} 39. Rb8+ {[%clk 0:00:12.6]} 39... Kh7 {[%clk 0:00:05.2]} 40. h3
{[%clk 0:00:13.2]} 40... Nf6 {[%clk 0:00:05.5]} 41. Kf3 {[%clk 0:00:14.1]} 41...
Nxd5 {[%clk 0:00:05.8]} 42. Rd8 {[%clk 0:00:14.3]} 42... Rd3+ {[%clk 0:00:05.5]}
43. Ke4 {[%clk 0:00:11.1]} 43... Rxg3 {[%clk 0:00:05.8]} 44. Rxd5 {[%clk
0:00:09.8]} 44... Rxh3 {[%clk 0:00:06.3]} 45. Rd7 {[%clk 0:00:10.4]} 45... f6
{[%clk 0:00:06.1]} 46. Kf5 {[%clk 0:00:10.9]} 46... Rg3 {[%clk 0:00:06.4]} 47.
Re7 {[%clk 0:00:11]} 47... h5 {[%clk 0:00:06.7]} 48. Ra7 {[%clk 0:00:11.2]}
48... h4 {[%clk 0:00:07.2]} 49. Ra2 {[%clk 0:00:11.8]} 49... h3 {[%clk
0:00:07.8]} 50. Rh2 {[%clk 0:00:12.2]} 50... Kh6 {[%clk 0:00:08.5]} 51. Ke4
{[%clk 0:00:11.8]} 51... Kh5 {[%clk 0:00:09]} 52. f5 {[%clk 0:00:12.3]} 52...
Kg4 {[%clk 0:00:09.3]} 53. Rf2 {[%clk 0:00:12]} 53... Rg2 {[%clk 0:00:09.5]} 54.
Rf4+ {[%clk 0:00:12.9]} 54... Kg3 {[%clk 0:00:10.1]} 55. Rf3+ {[%clk 0:00:13.8]}
55... Kh4 {[%clk 0:00:09.9]} 56. Kf4 {[%clk 0:00:14.7]} 56... Rg4+ {[%clk
0:00:09.3]} 57. Ke3 {[%clk 0:00:14.7]} 57... Rg3 {[%clk 0:00:10]} 58. Kf4 {[%clk
0:00:14.4]} 58... Rxf3+ {[%clk 0:00:10.5]} 59. Kxf3 {[%clk 0:00:15.3]} 59... Kg5
{[%clk 0:00:10.7]} 60. Kg3 {[%clk 0:00:15]} 60... Kxf5 {[%clk 0:00:11.3]} 61.
Kxh3 {[%clk 0:00:15.9]} 61... g5 {[%clk 0:00:11.9]} 62. Kg3 {[%clk 0:00:16.8]}
62... Kg6 {[%clk 0:00:12.5]} 63. Kg2 {[%clk 0:00:17.7]} 0-1

[Event "Late-Titled-Tuesday-Blitz-June-25-2024"]
[Site "Chess.com"]
[Date "2024.06.25"]
[Round "8"]
[White "Kildepiotr"]
[Black "LoonsDeKoeben"]
[Result "0-1"]
[WhiteElo "2693"]
[BlackElo "2436"]
[TimeControl "180+1"]
[EndTime "15:27:43 PDT"]
[Termination "LoonsDeKoeben won on time"]

1. Nf3 {[%clk 0:03:00.9]} 1... Nf6 {[%clk 0:03:00.1]} 2. g3 {[%clk 0:03:00.1]}
2... b5 {[%clk 0:03:00.4]} 3. Bg2 {[%clk 0:03:00.4]} 3... Bb7 {[%clk 0:03:01.1]}
4. O-O {[%clk 0:03:01.1]} 4... e6 {[%clk 0:03:01.6]} 5. d3 {[%clk 0:02:54.6]}
5... d5 {[%clk 0:03:01.1]} 6. Nbd2 {[%clk 0:02:51.2]} 6... d4 {[%clk 0:02:57.7]}
7. a4 {[%clk 0:02:46.3]} 7... a6 {[%clk 0:02:57.5]} 8. c3 {[%clk 0:02:42.4]}
8... c5 {[%clk 0:02:49.2]} 9. cxd4 {[%clk 0:02:41.1]} 9... cxd4 {[%clk
0:02:48.9]} 10. axb5 {[%clk 0:02:41.2]} 10... axb5 {[%clk 0:02:49]} 11. Rxa8
{[%clk 0:02:41.9]} 11... Bxa8 {[%clk 0:02:49.3]} 12. Nb3 {[%clk 0:02:38.5]}
12... Nc6 {[%clk 0:02:46.5]} 13. Nfxd4 {[%clk 0:02:27.5]} 13... Nxd4 {[%clk
0:02:42.4]} 14. Bxa8 {[%clk 0:02:27.5]} 14... Nxe2+ {[%clk 0:02:41.2]} 15. Qxe2
{[%clk 0:02:28.4]} 15... Qxa8 {[%clk 0:02:41]} 16. Be3 {[%clk 0:02:18.7]} 16...
Bd6 {[%clk 0:02:02.1]} 17. Ra1 {[%clk 0:02:17.6]} 17... Qb8 {[%clk 0:02:01.2]}
18. Ra5 {[%clk 0:01:47.3]} 18... O-O {[%clk 0:01:42.5]} 19. d4 {[%clk
0:01:19.3]} 19... b4 {[%clk 0:01:42.4]} 20. Nc5 {[%clk 0:01:14.4]} 20... Nd5
{[%clk 0:01:34.8]} 21. Nd7 {[%clk 0:01:08]} 21... Qc7 {[%clk 0:01:34.1]} 22.
Rxd5 {[%clk 0:01:02.9]} 22... exd5 {[%clk 0:01:25.6]} 23. Nxf8 {[%clk
0:01:02.3]} 23... Kxf8 {[%clk 0:01:21.2]} 24. Qh5 {[%clk 0:01:00.9]} 24... Qc4
{[%clk 0:00:22]} 25. Qxh7 {[%clk 0:00:59]} 25... f6 {[%clk 0:00:22.5]} 26. h4
{[%clk 0:00:48.4]} 26... Qb3 {[%clk 0:00:18.1]} 27. h5 {[%clk 0:00:35.3]} 27...
Qxb2 {[%clk 0:00:18.3]} 28. h6 {[%clk 0:00:34.4]} 28... Qa1+ {[%clk 0:00:17]}
29. Kg2 {[%clk 0:00:34]} 29... gxh6 {[%clk 0:00:16]} 30. Bxh6+ {[%clk 0:00:31]}
30... Ke8 {[%clk 0:00:16.2]} 31. Qg8+ {[%clk 0:00:27.1]} 31... Kd7 {[%clk
0:00:12.9]} 32. Qxd5 {[%clk 0:00:27]} 32... Qc3 {[%clk 0:00:07.7]} 33. Qf7+
{[%clk 0:00:21.3]} 33... Be7 {[%clk 0:00:03.5]} 34. Qd5+ {[%clk 0:00:20.6]}
34... Bd6 {[%clk 0:00:03.9]} 35. Qf5+ {[%clk 0:00:18.9]} 35... Ke7 {[%clk
0:00:04.4]} 36. d5 {[%clk 0:00:12.7]} 36... Qe5 {[%clk 0:00:03.5]} 37. Qh7+
{[%clk 0:00:12.3]} 37... Kd8 {[%clk 0:00:03.4]} 38. Qg8+ {[%clk 0:00:12.1]}
38... Kc7 {[%clk 0:00:03.5]} 39. Qf7+ {[%clk 0:00:08.4]} 39... Qe7 {[%clk
0:00:03.2]} 40. Qxe7+ {[%clk 0:00:08.8]} 40... Bxe7 {[%clk 0:00:04.1]} 41. Kf3
{[%clk 0:00:07.5]} 41... b3 {[%clk 0:00:04.3]} 42. Bc1 {[%clk 0:00:07.1]} 42...
Bd6 {[%clk 0:00:03]} 43. Ke4 {[%clk 0:00:07.5]} 43... Be5 {[%clk 0:00:03.4]} 44.
f4 {[%clk 0:00:06.5]} 44... b2 {[%clk 0:00:03.7]} 45. Bxb2 {[%clk 0:00:06.7]}
45... Bxb2 {[%clk 0:00:04.6]} 46. g4 {[%clk 0:00:05.6]} 46... Kd6 {[%clk
0:00:04]} 47. Kf5 {[%clk 0:00:05.6]} 47... Kxd5 {[%clk 0:00:03.6]} 48. Kg6
{[%clk 0:00:03.6]} 48... Ke6 {[%clk 0:00:02.8]} 49. f5+ {[%clk 0:00:03.2]} 49...
Ke7 {[%clk 0:00:02.2]} 50. g5 {[%clk 0:00:01.5]} 50... Bd4 {[%clk 0:00:02]} 0-1

[Event "Late-Titled-Tuesday-Blitz-June-25-2024"]
[Site "Chess.com"]
[Date "2024.06.25"]
[Round "8"]
[White "wonderfultime"]
[Black "MagnusCarlsen"]
[Result "1/2-1/2"]
[WhiteElo "3054"]
[BlackElo "3169"]
[TimeControl "180+1"]
[EndTime "15:27:46 PDT"]
[Termination "Game drawn by repetition"]

1. d4 {[%clk 0:03:00.4]} 1... Nf6 {[%clk 0:02:49.5]} 2. Nf3 {[%clk 0:02:59.2]}
2... b6 {[%clk 0:02:48.6]} 3. c4 {[%clk 0:02:58.8]} 3... Bb7 {[%clk 0:02:48.4]}
4. Nc3 {[%clk 0:02:58.5]} 4... e6 {[%clk 0:02:47.6]} 5. a3 {[%clk 0:02:58.9]}
5... d5 {[%clk 0:02:47.2]} 6. Bg5 {[%clk 0:02:58.2]} 6... Be7 {[%clk 0:02:46.4]}
7. Bxf6 {[%clk 0:02:57.5]} 7... Bxf6 {[%clk 0:02:46.3]} 8. cxd5 {[%clk
0:02:58.4]} 8... exd5 {[%clk 0:02:47]} 9. Qa4+ {[%clk 0:02:59]} 9... c6 {[%clk
0:02:42.5]} 10. g3 {[%clk 0:02:58.4]} 10... O-O {[%clk 0:02:41.9]} 11. Bh3
{[%clk 0:02:58.5]} 11... Na6 {[%clk 0:02:40.3]} 12. O-O {[%clk 0:02:57.5]} 12...
Re8 {[%clk 0:02:40]} 13. e3 {[%clk 0:02:55.4]} 13... Nc7 {[%clk 0:02:39.4]} 14.
Rac1 {[%clk 0:02:55.4]} 14... g6 {[%clk 0:02:38.6]} 15. Ne2 {[%clk 0:02:49.6]}
15... Nb5 {[%clk 0:02:35.8]} 16. Nf4 {[%clk 0:02:46.6]} 16... Nd6 {[%clk
0:02:32.9]} 17. Rxc6 {[%clk 0:02:29.1]} 17... b5 {[%clk 0:02:14.8]} 18. Qc2
{[%clk 0:02:24.2]} 18... Nc4 {[%clk 0:01:53.1]} 19. Rc5 {[%clk 0:02:19.2]} 19...
Be7 {[%clk 0:01:52.6]} 20. Rxb5 {[%clk 0:02:16]} 20... Bc6 {[%clk 0:01:51.8]}
21. Rc5 {[%clk 0:01:20.8]} 21... Bxc5 {[%clk 0:01:51.3]} 22. dxc5 {[%clk
0:01:21.7]} 22... Rb8 {[%clk 0:01:50.7]} 23. Rb1 {[%clk 0:01:07.1]} 23... Qa5
{[%clk 0:01:30.5]} 24. Nd4 {[%clk 0:01:05.8]} 24... Qxc5 {[%clk 0:00:50.8]} 25.
b3 {[%clk 0:00:57.4]} 25... Ba8 {[%clk 0:00:28.9]} 26. Ra1 {[%clk 0:00:36.4]}
26... Re7 {[%clk 0:00:19]} 27. bxc4 {[%clk 0:00:35.7]} 27... dxc4 {[%clk
0:00:19]} 28. Qc3 {[%clk 0:00:13.7]} 28... Reb7 {[%clk 0:00:18.4]} 29. Bf1
{[%clk 0:00:11.8]} 29... Rb1 {[%clk 0:00:17.8]} 30. h4 {[%clk 0:00:04.4]} 30...
Rxa1 {[%clk 0:00:16.5]} 31. Qxa1 {[%clk 0:00:05.3]} 31... c3 {[%clk 0:00:17]}
32. Qc1 {[%clk 0:00:03.6]} 32... Be4 {[%clk 0:00:15.9]} 33. Bd3 {[%clk
0:00:02.5]} 33... Bxd3 {[%clk 0:00:13.9]} 34. Nxd3 {[%clk 0:00:03.4]} 34... Qc4
{[%clk 0:00:14.5]} 35. Nb4 {[%clk 0:00:02.5]} 35... a5 {[%clk 0:00:11.6]} 36.
Nbc6 {[%clk 0:00:01.7]} 36... Rb2 {[%clk 0:00:08.1]} 37. Ne5 {[%clk 0:00:02.4]}
37... Qc5 {[%clk 0:00:03.4]} 38. Nd3 {[%clk 0:00:03]} 38... Qxa3 {[%clk
0:00:03.5]} 39. Nxb2 {[%clk 0:00:02.4]} 39... cxb2 {[%clk 0:00:04.4]} 40. Qc8+
{[%clk 0:00:01.4]} 40... Kg7 {[%clk 0:00:04.5]} 41. Qb8 {[%clk 0:00:02.2]} 41...
Qa1+ {[%clk 0:00:04.5]} 42. Kg2 {[%clk 0:00:02.9]} 42... b1=Q {[%clk 0:00:04.7]}
43. Qe5+ {[%clk 0:00:03.4]} 43... Kf8 {[%clk 0:00:04.8]} 44. Qd6+ {[%clk
0:00:03.3]} 44... Kg8 {[%clk 0:00:04.8]} 45. Qd8+ {[%clk 0:00:03.2]} 45... Kg7
{[%clk 0:00:04.9]} 46. Ne6+ {[%clk 0:00:02.6]} 46... fxe6 {[%clk 0:00:05.3]} 47.
Qe7+ {[%clk 0:00:03.2]} 47... Kh6 {[%clk 0:00:03.7]} 48. Qg5+ {[%clk 0:00:03.6]}
48... Kg7 {[%clk 0:00:03.7]} 49. Qe7+ {[%clk 0:00:04.5]} 49... Kg8 {[%clk
0:00:03.9]} 50. Qe8+ {[%clk 0:00:05]} 50... Kg7 {[%clk 0:00:04.3]} 51. Qe7+
{[%clk 0:00:05.9]} 1/2-1/2

[Event "Late-Titled-Tuesday-Blitz-June-25-2024"]
[Site "Chess.com"]
[Date "2024.06.25"]
[Round "8"]
[White "Chessdude1987"]
[Black "DucksParadise"]
[Result "0-1"]
[WhiteElo "2361"]
[BlackElo "2582"]
[TimeControl "180+1"]
[EndTime "15:27:51 PDT"]
[Termination "DucksParadise won on time"]

1. e4 {[%clk 0:03:00.9]} 1... e6 {[%clk 0:03:00.9]} 2. d4 {[%clk 0:02:59.2]}
2... d5 {[%clk 0:03:01.8]} 3. exd5 {[%clk 0:02:59]} 3... exd5 {[%clk 0:03:02.7]}
4. Nf3 {[%clk 0:02:59.2]} 4... Nf6 {[%clk 0:03:02.3]} 5. Bd3 {[%clk 0:02:58.9]}
5... c5 {[%clk 0:03:02.7]} 6. O-O {[%clk 0:02:51.9]} 6... c4 {[%clk 0:03:02.4]}
7. Re1+ {[%clk 0:02:51.8]} 7... Be7 {[%clk 0:03:02.1]} 8. Bf1 {[%clk 0:02:50.2]}
8... O-O {[%clk 0:03:02.3]} 9. Ne5 {[%clk 0:02:49.5]} 9... Nc6 {[%clk
0:03:00.3]} 10. Nxc6 {[%clk 0:02:48.5]} 10... bxc6 {[%clk 0:03:01.2]} 11. b3
{[%clk 0:02:48.9]} 11... cxb3 {[%clk 0:03:00.9]} 12. axb3 {[%clk 0:02:48.8]}
12... Bg4 {[%clk 0:02:56.5]} 13. Qd3 {[%clk 0:02:31.4]} 13... Re8 {[%clk
0:02:53.2]} 14. Nd2 {[%clk 0:02:01]} 14... Qd7 {[%clk 0:02:49.1]} 15. Nf3 {[%clk
0:01:27.1]} 15... Bf5 {[%clk 0:02:31.3]} 16. Qa6 {[%clk 0:01:26.5]} 16... Bd6
{[%clk 0:02:21.4]} 17. Ne5 {[%clk 0:01:17]} 17... Bxe5 {[%clk 0:02:17.6]} 18.
dxe5 {[%clk 0:00:58.1]} 18... Ng4 {[%clk 0:02:11.8]} 19. Bf4 {[%clk 0:00:51.8]}
19... f6 {[%clk 0:01:40.6]} 20. exf6 {[%clk 0:00:44.4]} 20... Nxf6 {[%clk
0:01:41.5]} 21. c4 {[%clk 0:00:40.5]} 21... d4 {[%clk 0:01:37.5]} 22. c5 {[%clk
0:00:33.7]} 22... d3 {[%clk 0:01:33.6]} 23. Red1 {[%clk 0:00:24.6]} 23... Qd4
{[%clk 0:01:24]} 24. Bg3 {[%clk 0:00:10.4]} 24... d2 {[%clk 0:01:07.5]} 25. Qc4+
{[%clk 0:00:10]} 25... Qxc4 {[%clk 0:01:00.3]} 26. Bxc4+ {[%clk 0:00:10.9]}
26... Kh8 {[%clk 0:00:59.6]} 27. Rxd2 {[%clk 0:00:10.7]} 27... Ne4 {[%clk
0:00:58.6]} 28. Re2 {[%clk 0:00:08]} 28... Nxc5 {[%clk 0:00:58.3]} 29. Rxe8+
{[%clk 0:00:06.7]} 29... Rxe8 {[%clk 0:00:59.2]} 30. f3 {[%clk 0:00:05.8]} 30...
Bd3 {[%clk 0:00:37.8]} 31. Bf2 {[%clk 0:00:04.2]} 31... Bxc4 {[%clk 0:00:37.5]}
32. bxc4 {[%clk 0:00:04]} 32... Nd3 {[%clk 0:00:36.1]} 33. Rxa7 {[%clk
0:00:03.8]} 33... h6 {[%clk 0:00:35.3]} 34. Kf1 {[%clk 0:00:03.4]} 34... Rd8
{[%clk 0:00:25.2]} 35. Rc7 {[%clk 0:00:02.7]} 35... Ne5 {[%clk 0:00:24.3]} 36.
Ke2 {[%clk 0:00:02.5]} 36... Nxc4 {[%clk 0:00:20.3]} 37. Rxc6 {[%clk 0:00:02.6]}
37... Ne5 {[%clk 0:00:20.7]} 38. Re6 {[%clk 0:00:02.2]} 38... Nf7 {[%clk
0:00:20.7]} 39. Be3 {[%clk 0:00:01.7]} 39... Kg8 {[%clk 0:00:20]} 40. Ra6 {[%clk
0:00:01.4]} 40... Nh8 {[%clk 0:00:19.4]} 41. Kf2 {[%clk 0:00:01.5]} 41... Nf7
{[%clk 0:00:19.5]} 42. Ra7 {[%clk 0:00:01.6]} 42... Ne5 {[%clk 0:00:18.7]} 43.
h4 {[%clk 0:00:01.7]} 43... Nc4 {[%clk 0:00:18.4]} 44. Bc1 {[%clk 0:00:01.2]}
44... Rd1 {[%clk 0:00:17.7]} 45. Bf4 {[%clk 0:00:01.4]} 45... Rb1 {[%clk
0:00:16.9]} 46. Kg3 {[%clk 0:00:01.5]} 46... Rb2 {[%clk 0:00:16.7]} 47. Ra8+
{[%clk 0:00:01.8]} 47... Kf7 {[%clk 0:00:16.5]} 48. Ra7+ {[%clk 0:00:02.2]}
48... Kg6 {[%clk 0:00:15.6]} 49. Ra6+ {[%clk 0:00:02.3]} 49... Kh7 {[%clk
0:00:15.5]} 50. Rc6 {[%clk 0:00:02.1]} 50... Rb4 {[%clk 0:00:14.7]} 51. Rc7
{[%clk 0:00:02]} 51... Ra4 {[%clk 0:00:14.5]} 52. h5 {[%clk 0:00:02.2]} 52...
Kg8 {[%clk 0:00:10.9]} 53. Rd7 {[%clk 0:00:01.6]} 53... Nb6 {[%clk 0:00:09.4]}
54. Rd8+ {[%clk 0:00:01.7]} 54... Kf7 {[%clk 0:00:09.4]} 55. Rb8 {[%clk
0:00:01.6]} 55... Nd5 {[%clk 0:00:09.4]} 56. Rb7+ {[%clk 0:00:01.6]} 56... Ke6
{[%clk 0:00:08.8]} 0-1